[Event "*** Titled Tuesday Blitz"]
[Site "Chess.com"]
[Date "2020.05.19"]
[Round "10"]
[White "fighter2jz"]
[Black "velemajstor767276"]
[Result "1-0"]
[WhiteElo "2773"]
[BlackElo "2640"]
[TimeControl "180+1"]
[EndTime "13:58:20 PDT"]
[Termination "fighter2jz won on time"]

1. b3 {[%clk 0:02:55]} 1... Nf6 {[%clk 0:02:58.1]} 2. Bb2 {[%clk 0:02:55.4]}
2... b6 {[%clk 0:02:58.2]} 3. f3 {[%clk 0:02:54]} 3... d5 {[%clk 0:02:51.9]} 4.
Kf2 {[%clk 0:02:53.5]} 4... c5 {[%clk 0:02:45.5]} 5. g3 {[%clk 0:02:53.1]} 5...
g6 {[%clk 0:02:41.1]} 6. Bg2 {[%clk 0:02:53.4]} 6... Bg7 {[%clk 0:02:41.2]} 7.
Kf1 {[%clk 0:02:49.2]} 7... O-O {[%clk 0:02:38.8]} 8. c3 {[%clk 0:02:48]} 8...
e5 {[%clk 0:02:36.8]} 9. d3 {[%clk 0:02:45.2]} 9... d4 {[%clk 0:02:35.4]} 10. c4
{[%clk 0:02:45]} 10... Bb7 {[%clk 0:02:28.9]} 11. Nh3 {[%clk 0:02:44.4]} 11...
Nbd7 {[%clk 0:02:22.1]} 12. Nf2 {[%clk 0:02:44.5]} 12... Nh5 {[%clk 0:02:21.6]}
13. Nd2 {[%clk 0:02:42.2]} 13... f5 {[%clk 0:02:21.2]} 14. Rg1 {[%clk
0:02:29.7]} 14... Bh6 {[%clk 0:02:06.2]} 15. Bh1 {[%clk 0:02:28.2]} 15... Be3
{[%clk 0:02:04]} 16. Qe1 {[%clk 0:02:16]} 16... Qg5 {[%clk 0:01:58.2]} 17. Rd1
{[%clk 0:02:16.3]} 17... Qh6 {[%clk 0:01:53.7]} 18. Rg2 {[%clk 0:02:13.2]} 18...
Ndf6 {[%clk 0:01:48.8]} 19. Bc1 {[%clk 0:02:11.7]} 19... e4 {[%clk 0:01:40]} 20.
a3 {[%clk 0:01:39.9]} 20... exd3 {[%clk 0:01:34.1]} 21. Nxd3 {[%clk 0:01:38.2]}
21... Rae8 {[%clk 0:01:27.6]} 22. h4 {[%clk 0:01:28.9]} 22... f4 {[%clk
0:01:09.3]} 23. g4 {[%clk 0:01:16.6]} 23... Ng3+ {[%clk 0:01:06.3]} 24. Rxg3
{[%clk 0:01:17.2]} 24... fxg3 {[%clk 0:01:05.2]} 25. Qxg3 {[%clk 0:01:18.1]}
25... g5 {[%clk 0:00:51.6]} 26. h5 {[%clk 0:01:15.1]} 26... Qg7 {[%clk
0:00:39.7]} 27. Kg2 {[%clk 0:01:09.6]} 27... h6 {[%clk 0:00:35.7]} 28. Kh3
{[%clk 0:01:09.1]} 28... Qd7 {[%clk 0:00:31.9]} 29. Kh2 {[%clk 0:01:03.2]} 29...
Qe6 {[%clk 0:00:22.8]} 30. Nf1 {[%clk 0:01:02.1]} 30... Bxc1 {[%clk 0:00:20.6]}
31. Nxc1 {[%clk 0:01:03]} 31... Qe5 {[%clk 0:00:19.3]} 32. Bg2 {[%clk 0:01:02]}
32... Qxg3+ {[%clk 0:00:14.2]} 33. Nxg3 {[%clk 0:01:02.9]} 33... Re5 {[%clk
0:00:13.6]} 34. Nd3 {[%clk 0:01:00]} 34... Re6 {[%clk 0:00:13.5]} 35. Rd2 {[%clk
0:00:58.6]} 35... Nd7 {[%clk 0:00:13.4]} 36. Nf5 {[%clk 0:00:57.9]} 36... Kh7
{[%clk 0:00:12.5]} 37. Nf2 {[%clk 0:00:57.4]} 37... Rfe8 {[%clk 0:00:12.4]} 38.
Ne4 {[%clk 0:00:55.2]} 38... Bxe4 {[%clk 0:00:11]} 39. fxe4 {[%clk 0:00:55.4]}
39... Nf6 {[%clk 0:00:11.9]} 40. Bf3 {[%clk 0:00:51.6]} 40... Nxe4 {[%clk
0:00:12]} 41. Rd3 {[%clk 0:00:49.3]} 41... Nc3 {[%clk 0:00:11.9]} 42. Ng3 {[%clk
0:00:46.4]} 42... Re3 {[%clk 0:00:10.4]} 43. Rd2 {[%clk 0:00:46.3]} 43... a5
{[%clk 0:00:08.3]} 44. a4 {[%clk 0:00:45.7]} 44... R3e5 {[%clk 0:00:06.7]} 45.
Kg2 {[%clk 0:00:44.6]} 45... Nb1 {[%clk 0:00:05.7]} 46. Rb2 {[%clk 0:00:43.7]}
46... Nc3 {[%clk 0:00:06.2]} 47. Rd2 {[%clk 0:00:42.4]} 47... R5e7 {[%clk
0:00:05.5]} 48. Kf2 {[%clk 0:00:42.1]} 48... Rf8 {[%clk 0:00:05.1]} 49. Nf5
{[%clk 0:00:41.4]} 49... Rxf5 {[%clk 0:00:05.3]} 50. gxf5 {[%clk 0:00:41.1]}
50... Ne4+ {[%clk 0:00:05.9]} 51. Bxe4 {[%clk 0:00:40.3]} 51... Rxe4 {[%clk
0:00:06.8]} 52. Rd3 {[%clk 0:00:22.1]} 52... Rf4+ {[%clk 0:00:06.5]} 53. Kg3
{[%clk 0:00:22.2]} 53... Kg7 {[%clk 0:00:06.3]} 54. e3 {[%clk 0:00:21.8]} 54...
dxe3 {[%clk 0:00:05.7]} 55. Rxe3 {[%clk 0:00:22.4]} 55... Rxf5 {[%clk 0:00:06]}
56. Re6 {[%clk 0:00:21.8]} 56... Rf6 {[%clk 0:00:06.1]} 57. Re7+ {[%clk
0:00:22]} 57... Rf7 {[%clk 0:00:04.6]} 58. Re6 {[%clk 0:00:22.1]} 58... Rf6
{[%clk 0:00:05.2]} 59. Re8 {[%clk 0:00:21.4]} 59... Kf7 {[%clk 0:00:04.7]} 60.
Rb8 {[%clk 0:00:21.2]} 60... Ke7 {[%clk 0:00:03.9]} 61. Rb7+ {[%clk 0:00:20.6]}
61... Kd8 {[%clk 0:00:03.4]} 62. Kg2 {[%clk 0:00:20.8]} 62... Kc8 {[%clk
0:00:03.7]} 63. Rg7 {[%clk 0:00:20.9]} 63... Rf4 {[%clk 0:00:02.6]} 64. Rg6
{[%clk 0:00:20.7]} 64... Rh4 {[%clk 0:00:02.5]} 65. Rxh6 {[%clk 0:00:20.9]}
65... Kc7 {[%clk 0:00:02.5]} 66. Kg3 {[%clk 0:00:20.9]} 66... Kb7 {[%clk
0:00:01.5]} 67. Rh7+ {[%clk 0:00:20.8]} 67... Ka6 {[%clk 0:00:01.9]} 68. h6
{[%clk 0:00:21.4]} 68... Rh5 {[%clk 0:00:01.4]} 69. Kg4 {[%clk 0:00:21.2]} 69...
Rh1 {[%clk 0:00:01.5]} 70. Kxg5 {[%clk 0:00:21.7]} 70... Rg1+ {[%clk 0:00:01.2]}
71. Kf6 {[%clk 0:00:22.1]} 71... Rf1+ {[%clk 0:00:01.7]} 72. Ke7 {[%clk
0:00:22.4]} 72... Re1+ {[%clk 0:00:02.2]} 73. Kd8 {[%clk 0:00:22.8]} 73... Rh1
{[%clk 0:00:02]} 74. Kc8 {[%clk 0:00:22.8]} 1-0

[Event "*** Titled Tuesday Blitz"]
[Site "Chess.com"]
[Date "2020.05.19"]
[Round "10"]
[White "Fandorine"]
[Black "CaspiIsrael"]
[Result "1-0"]
[WhiteElo "2864"]
[BlackElo "2611"]
[TimeControl "180+1"]
[EndTime "13:58:20 PDT"]
[Termination "Fandorine won by checkmate"]

1. d4 {[%clk 0:03:00.9]} 1... f5 {[%clk 0:02:57.7]} 2. Bg5 {[%clk 0:02:59]} 2...
g6 {[%clk 0:02:57.7]} 3. e3 {[%clk 0:02:57.3]} 3... Bg7 {[%clk 0:02:56.9]} 4.
Nc3 {[%clk 0:02:54.3]} 4... Nf6 {[%clk 0:02:56.3]} 5. h4 {[%clk 0:02:54.7]} 5...
h6 {[%clk 0:02:55.9]} 6. Bf4 {[%clk 0:02:53.9]} 6... d6 {[%clk 0:02:55.6]} 7. f3
{[%clk 0:02:53.3]} 7... Nc6 {[%clk 0:02:53.6]} 8. Bb5 {[%clk 0:02:53.6]} 8...
O-O {[%clk 0:02:52.5]} 9. Qd2 {[%clk 0:02:40.1]} 9... e5 {[%clk 0:02:49.6]} 10.
Bh2 {[%clk 0:02:40.2]} 10... exd4 {[%clk 0:02:39.7]} 11. exd4 {[%clk 0:02:41.1]}
11... Nh5 {[%clk 0:02:38.4]} 12. O-O-O {[%clk 0:02:27.8]} 12... Nxd4 {[%clk
0:02:34.7]} 13. Bc4+ {[%clk 0:02:27.9]} 13... Be6 {[%clk 0:02:33.9]} 14. Qxd4
{[%clk 0:02:23.3]} 14... Bxd4 {[%clk 0:02:30.3]} 15. Bxe6+ {[%clk 0:02:23.8]}
15... Kh8 {[%clk 0:02:18.1]} 16. Rxd4 {[%clk 0:02:24.7]} 16... Qf6 {[%clk
0:02:17.2]} 17. Nge2 {[%clk 0:02:19.1]} 17... Qxe6 {[%clk 0:02:16.9]} 18. Rhd1
{[%clk 0:02:11.9]} 18... Rae8 {[%clk 0:02:14.5]} 19. Nf4 {[%clk 0:02:09.7]}
19... Nxf4 {[%clk 0:02:13.6]} 20. Bxf4 {[%clk 0:02:10.1]} 20... Kh7 {[%clk
0:02:12]} 21. b3 {[%clk 0:02:07.4]} 21... Rf7 {[%clk 0:02:06.9]} 22. a4 {[%clk
0:02:01.6]} 22... a6 {[%clk 0:02:06.4]} 23. Rc4 {[%clk 0:02:00.2]} 23... Rd7
{[%clk 0:02:01.6]} 24. Kb2 {[%clk 0:01:55.1]} 24... c6 {[%clk 0:02:00.7]} 25. a5
{[%clk 0:01:42.5]} 25... Qf6 {[%clk 0:01:51.2]} 26. Kb1 {[%clk 0:01:38]} 26...
Re6 {[%clk 0:01:42.2]} 27. Bg3 {[%clk 0:01:31.1]} 27... Re3 {[%clk 0:01:33.5]}
28. Na4 {[%clk 0:01:23.2]} 28... Re2 {[%clk 0:01:33.2]} 29. Rcd4 {[%clk
0:01:13.4]} 29... Rxg2 {[%clk 0:01:24]} 30. Bxd6 {[%clk 0:01:11.6]} 30... Qe6
{[%clk 0:01:01.8]} 31. Nc5 {[%clk 0:01:04.3]} 31... Qe2 {[%clk 0:01:01.4]} 32.
Rc1 {[%clk 0:01:03.8]} 32... Rf7 {[%clk 0:00:49.6]} 33. f4 {[%clk 0:00:58.8]}
33... Qf2 {[%clk 0:00:43.4]} 34. Rdd1 {[%clk 0:00:48.5]} 34... Qxh4 {[%clk
0:00:30.3]} 35. Be5 {[%clk 0:00:47.3]} 35... g5 {[%clk 0:00:30.3]} 36. Rd8
{[%clk 0:00:36.6]} 36... Kg6 {[%clk 0:00:24.3]} 37. Nd3 {[%clk 0:00:30.2]} 37...
g4 {[%clk 0:00:19.1]} 38. Rd6+ {[%clk 0:00:20.9]} 38... Kh7 {[%clk 0:00:17.1]}
39. Bb2 {[%clk 0:00:14.3]} 39... Qe7 {[%clk 0:00:13]} 40. Be5 {[%clk 0:00:11.6]}
40... Rh2 {[%clk 0:00:11.9]} 41. Rg1 {[%clk 0:00:08.1]} 41... h5 {[%clk
0:00:11.2]} 42. Nc5 {[%clk 0:00:05.4]} 42... h4 {[%clk 0:00:10.4]} 43. Ne6
{[%clk 0:00:05.8]} 43... g3 {[%clk 0:00:05]} 44. Ng5+ {[%clk 0:00:06]} 44... Kg8
{[%clk 0:00:04.2]} 45. Rg6+ {[%clk 0:00:05.8]} 45... Kf8 {[%clk 0:00:03.3]} 46.
Bd6 {[%clk 0:00:04.2]} 46... g2 {[%clk 0:00:03.6]} 47. Bxe7+ {[%clk 0:00:04.1]}
47... Rxe7 {[%clk 0:00:04.5]} 48. Nf3 {[%clk 0:00:04.6]} 48... Rh1 {[%clk
0:00:04.2]} 49. Rxg2 {[%clk 0:00:04.7]} 49... Rxg1+ {[%clk 0:00:04.8]} 50. Rxg1
{[%clk 0:00:03.7]} 50... Re4 {[%clk 0:00:05.7]} 51. Nxh4 {[%clk 0:00:03.8]}
51... Kf7 {[%clk 0:00:05.3]} 52. Nxf5 {[%clk 0:00:04]} 52... Rxf4 {[%clk
0:00:05.8]} 53. Nd6+ {[%clk 0:00:04.5]} 53... Ke6 {[%clk 0:00:06.3]} 54. Nxb7
{[%clk 0:00:05.4]} 54... Rf5 {[%clk 0:00:06.7]} 55. Rg7 {[%clk 0:00:03.7]} 55...
Kd5 {[%clk 0:00:06.6]} 56. Kb2 {[%clk 0:00:03.7]} 56... c5 {[%clk 0:00:06.6]}
57. Rc7 {[%clk 0:00:04.1]} 57... Kd4 {[%clk 0:00:06.3]} 58. Nxc5 {[%clk
0:00:03.8]} 58... Rxc5 {[%clk 0:00:07.2]} 59. Rxc5 {[%clk 0:00:04.1]} 59... Kxc5
{[%clk 0:00:08.1]} 60. c3 {[%clk 0:00:04.6]} 60... Kb5 {[%clk 0:00:08.3]} 61. b4
{[%clk 0:00:05.2]} 61... Ka4 {[%clk 0:00:08.4]} 62. Kc2 {[%clk 0:00:04.9]} 62...
Kb5 {[%clk 0:00:08.6]} 63. Kd3 {[%clk 0:00:05.4]} 63... Ka4 {[%clk 0:00:09.2]}
64. Kc4 {[%clk 0:00:05.9]} 64... Ka3 {[%clk 0:00:09.3]} 65. Kc5 {[%clk 0:00:06]}
65... Ka4 {[%clk 0:00:10.2]} 66. c4 {[%clk 0:00:06.5]} 66... Kb3 {[%clk
0:00:10.5]} 67. b5 {[%clk 0:00:06.8]} 67... axb5 {[%clk 0:00:11.4]} 68. cxb5
{[%clk 0:00:07.7]} 68... Ka4 {[%clk 0:00:11.7]} 69. a6 {[%clk 0:00:08.6]} 69...
Ka5 {[%clk 0:00:12.6]} 70. a7 {[%clk 0:00:08.9]} 70... Ka4 {[%clk 0:00:13]} 71.
b6 {[%clk 0:00:09]} 71... Kb3 {[%clk 0:00:13.9]} 72. b7 {[%clk 0:00:08.6]} 72...
Kb2 {[%clk 0:00:14.8]} 73. b8=Q+ {[%clk 0:00:08.2]} 73... Ka1 {[%clk 0:00:15.7]}
74. a8=Q# {[%clk 0:00:07.8]} 1-0

[Event "*** Titled Tuesday Blitz"]
[Site "Chess.com"]
[Date "2020.05.19"]
[Round "10"]
[White "top_bu_tz"]
[Black "canary2016"]
[Result "1-0"]
[WhiteElo "2224"]
[BlackElo "1973"]
[TimeControl "180+1"]
[EndTime "13:58:21 PDT"]
[Termination "top_bu_tz won by checkmate"]

1. e4 {[%clk 0:03:00.9]} 1... e5 {[%clk 0:02:59.1]} 2. Nf3 {[%clk 0:03:00.3]}
2... Nf6 {[%clk 0:02:59]} 3. Nxe5 {[%clk 0:02:57.4]} 3... d6 {[%clk 0:02:58.7]}
4. Nf3 {[%clk 0:02:57.6]} 4... Nxe4 {[%clk 0:02:58.7]} 5. Nc3 {[%clk 0:02:58.5]}
5... Nxc3 {[%clk 0:02:57.8]} 6. dxc3 {[%clk 0:02:59.4]} 6... Qe7+ {[%clk
0:02:57.9]} 7. Be2 {[%clk 0:02:58]} 7... g6 {[%clk 0:02:54.7]} 8. O-O {[%clk
0:02:58.3]} 8... Bg7 {[%clk 0:02:54.7]} 9. Bb5+ {[%clk 0:02:58.1]} 9... c6
{[%clk 0:02:48.5]} 10. Re1 {[%clk 0:02:57.2]} 10... Be6 {[%clk 0:02:48.3]} 11.
Bd3 {[%clk 0:02:52.2]} 11... O-O {[%clk 0:02:47.6]} 12. Qe2 {[%clk 0:02:43.5]}
12... Re8 {[%clk 0:02:43.7]} 13. Bf4 {[%clk 0:02:32]} 13... Nd7 {[%clk
0:02:41.9]} 14. Rad1 {[%clk 0:02:24.9]} 14... Nc5 {[%clk 0:02:40.2]} 15. Bxg6
{[%clk 0:01:41.5]} 15... hxg6 {[%clk 0:02:03.5]} 16. Bxd6 {[%clk 0:01:31.6]}
16... Qf6 {[%clk 0:02:03.3]} 17. Bxc5 {[%clk 0:01:30]} 17... Bxa2 {[%clk
0:02:00.6]} 18. Qxe8+ {[%clk 0:01:17.6]} 18... Rxe8 {[%clk 0:01:59.4]} 19. Rxe8+
{[%clk 0:01:18.5]} 19... Kh7 {[%clk 0:01:59.5]} 20. Bd4 {[%clk 0:01:12.1]} 20...
Qf5 {[%clk 0:01:50.7]} 21. Bxg7 {[%clk 0:00:28.1]} 21... Kxg7 {[%clk 0:01:49.1]}
22. Rd2 {[%clk 0:00:24.6]} 22... Bd5 {[%clk 0:01:46.5]} 23. Re3 {[%clk 0:00:24]}
23... Qf4 {[%clk 0:01:42]} 24. Rd4 {[%clk 0:00:21.2]} 24... Qf5 {[%clk
0:01:37.4]} 25. c4 {[%clk 0:00:20.9]} 25... Bxf3 {[%clk 0:01:27]} 26. Rxf3
{[%clk 0:00:19.4]} 26... Qxc2 {[%clk 0:01:26.7]} 27. h3 {[%clk 0:00:19]} 27...
Qxb2 {[%clk 0:01:10.9]} 28. Rd7 {[%clk 0:00:18.7]} 28... Qa1+ {[%clk 0:01:10.5]}
29. Kh2 {[%clk 0:00:18.1]} 29... Qe5+ {[%clk 0:01:10]} 30. g3 {[%clk 0:00:18.1]}
30... Qe6 {[%clk 0:01:05.3]} 31. Rxb7 {[%clk 0:00:17.9]} 31... Qxc4 {[%clk
0:01:02.1]} 32. Rxa7 {[%clk 0:00:17.3]} 32... Qd5 {[%clk 0:01:01.9]} 33. Rf4
{[%clk 0:00:15.6]} 33... c5 {[%clk 0:01:00.5]} 34. Raa4 {[%clk 0:00:15.1]} 34...
Qb3 {[%clk 0:00:49.8]} 35. Rac4 {[%clk 0:00:14.5]} 35... Qb5 {[%clk 0:00:43.9]}
36. h4 {[%clk 0:00:14]} 36... Qc6 {[%clk 0:00:42.1]} 37. Rc3 {[%clk 0:00:13.7]}
37... Qd6 {[%clk 0:00:36]} 38. Rfc4 {[%clk 0:00:13.5]} 38... Qf6 {[%clk
0:00:34.2]} 39. Rc2 {[%clk 0:00:13]} 39... Qf5 {[%clk 0:00:32]} 40. Rxc5 {[%clk
0:00:12.9]} 40... Qe4 {[%clk 0:00:28.9]} 41. R5c3 {[%clk 0:00:11.2]} 41... Qd4
{[%clk 0:00:27.9]} 42. Re3 {[%clk 0:00:10.7]} 42... Qd1 {[%clk 0:00:26.5]} 43.
Rce2 {[%clk 0:00:10.7]} 43... Qd5 {[%clk 0:00:24.8]} 44. f3 {[%clk 0:00:09]}
44... Qc4 {[%clk 0:00:22.8]} 45. Kg2 {[%clk 0:00:09.3]} 45... Qd5 {[%clk
0:00:22.1]} 46. Re7 {[%clk 0:00:09.4]} 46... Qc4 {[%clk 0:00:21.2]} 47. Rf2
{[%clk 0:00:09.1]} 47... Qd4 {[%clk 0:00:20.4]} 48. Ree2 {[%clk 0:00:10]} 48...
Qd5 {[%clk 0:00:19.8]} 49. Rd2 {[%clk 0:00:10.3]} 49... Qc5 {[%clk 0:00:19.9]}
50. Rd7 {[%clk 0:00:09.6]} 50... Qc6 {[%clk 0:00:19.4]} 51. Rfd2 {[%clk
0:00:09.9]} 51... Qb6 {[%clk 0:00:18.5]} 52. Re7 {[%clk 0:00:08.6]} 52... Qb4
{[%clk 0:00:17.8]} 53. Rdd7 {[%clk 0:00:07]} 53... Qb2+ {[%clk 0:00:17.5]} 54.
Kh3 {[%clk 0:00:07.5]} 54... Qf6 {[%clk 0:00:16.9]} 55. Rxf7+ {[%clk 0:00:07.6]}
55... Qxf7 {[%clk 0:00:16.8]} 56. Rxf7+ {[%clk 0:00:08.5]} 56... Kxf7 {[%clk
0:00:17]} 57. Kg4 {[%clk 0:00:09.4]} 57... Kf6 {[%clk 0:00:17]} 58. f4 {[%clk
0:00:09.8]} 58... Kg7 {[%clk 0:00:16]} 59. Kg5 {[%clk 0:00:10.7]} 59... Kh7
{[%clk 0:00:15.9]} 60. h5 {[%clk 0:00:11.1]} 60... gxh5 {[%clk 0:00:15.5]} 61.
Kxh5 {[%clk 0:00:12]} 61... Kg7 {[%clk 0:00:15.8]} 62. Kg5 {[%clk 0:00:12.8]}
62... Kf7 {[%clk 0:00:16]} 63. f5 {[%clk 0:00:13.7]} 63... Kg7 {[%clk 0:00:16]}
64. f6+ {[%clk 0:00:14.6]} 64... Kf7 {[%clk 0:00:15.9]} 65. Kf5 {[%clk
0:00:15.5]} 65... Kf8 {[%clk 0:00:14.7]} 66. g4 {[%clk 0:00:16.4]} 66... Kg8
{[%clk 0:00:14.8]} 67. g5 {[%clk 0:00:17.3]} 67... Kf8 {[%clk 0:00:14.9]} 68. g6
{[%clk 0:00:15.7]} 68... Kg8 {[%clk 0:00:14.6]} 69. f7+ {[%clk 0:00:15.5]} 69...
Kf8 {[%clk 0:00:14.6]} 70. Ke6 {[%clk 0:00:15.6]} 70... Kg7 {[%clk 0:00:14.4]}
71. Ke7 {[%clk 0:00:15.8]} 71... Kxg6 {[%clk 0:00:14.6]} 72. f8=Q {[%clk
0:00:16.3]} 72... Kg5 {[%clk 0:00:14.7]} 73. Qf6+ {[%clk 0:00:16.1]} 73... Kg4
{[%clk 0:00:14.4]} 74. Ke6 {[%clk 0:00:17]} 74... Kg3 {[%clk 0:00:13.6]} 75. Ke5
{[%clk 0:00:17.3]} 75... Kg4 {[%clk 0:00:13.5]} 76. Ke4 {[%clk 0:00:18.2]} 76...
Kh5 {[%clk 0:00:12.3]} 77. Qg7 {[%clk 0:00:17.9]} 77... Kh4 {[%clk 0:00:11.9]}
78. Qg6 {[%clk 0:00:18.8]} 78... Kh3 {[%clk 0:00:11.4]} 79. Qg5 {[%clk
0:00:19.7]} 79... Kh2 {[%clk 0:00:11.2]} 80. Qg4 {[%clk 0:00:20.6]} 80... Kh1
{[%clk 0:00:10.9]} 81. Kf3 {[%clk 0:00:21.5]} 81... Kh2 {[%clk 0:00:10.6]} 82.
Qg2# {[%clk 0:00:21.7]} 1-0

[Event "*** Titled Tuesday Blitz"]
[Site "Chess.com"]
[Date "2020.05.19"]
[Round "10"]
[White "Ceejay271"]
[Black "szachuspl"]
[Result "0-1"]
[WhiteElo "2402"]
[BlackElo "2542"]
[TimeControl "180+1"]
[EndTime "13:58:26 PDT"]
[Termination "szachuspl won on time"]

1. d4 {[%clk 0:03:00.9]} 1... Nf6 {[%clk 0:02:58.6]} 2. c4 {[%clk 0:03:01.2]}
2... g6 {[%clk 0:02:58.5]} 3. Nc3 {[%clk 0:03:01]} 3... Bg7 {[%clk 0:02:58.8]}
4. e4 {[%clk 0:03:00.4]} 4... d6 {[%clk 0:02:59.3]} 5. Nf3 {[%clk 0:02:59.1]}
5... O-O {[%clk 0:02:58.4]} 6. Be2 {[%clk 0:02:59.6]} 6... Na6 {[%clk 0:02:56]}
7. O-O {[%clk 0:02:56.1]} 7... e5 {[%clk 0:02:56.1]} 8. Be3 {[%clk 0:02:55.7]}
8... Ng4 {[%clk 0:02:55.8]} 9. Bg5 {[%clk 0:02:55.1]} 9... Qe8 {[%clk
0:02:50.5]} 10. Re1 {[%clk 0:02:48.4]} 10... h6 {[%clk 0:02:16.9]} 11. Bh4
{[%clk 0:02:44.9]} 11... c6 {[%clk 0:02:07.2]} 12. dxe5 {[%clk 0:01:55.5]} 12...
dxe5 {[%clk 0:02:05.6]} 13. Nd2 {[%clk 0:01:51.4]} 13... Nf6 {[%clk 0:02:05]}
14. a3 {[%clk 0:01:49.9]} 14... Nc5 {[%clk 0:02:03.6]} 15. b4 {[%clk 0:01:48.3]}
15... Ne6 {[%clk 0:02:03.6]} 16. c5 {[%clk 0:01:48.1]} 16... g5 {[%clk
0:01:44.5]} 17. Bg3 {[%clk 0:01:46.3]} 17... Nf4 {[%clk 0:01:45.1]} 18. Nc4
{[%clk 0:01:44.7]} 18... Be6 {[%clk 0:01:43.9]} 19. Nxe5 {[%clk 0:01:36.4]}
19... Nxe4 {[%clk 0:01:40.6]} 20. Nxe4 {[%clk 0:01:35.7]} 20... Bxe5 {[%clk
0:01:40.4]} 21. Rc1 {[%clk 0:01:20.9]} 21... Qd8 {[%clk 0:01:40.4]} 22. Qc2
{[%clk 0:01:09.4]} 22... Qc7 {[%clk 0:01:39.5]} 23. Bc4 {[%clk 0:01:03.4]} 23...
Rad8 {[%clk 0:01:26.4]} 24. Rcd1 {[%clk 0:00:58]} 24... Kg7 {[%clk 0:01:16.4]}
25. Nd6 {[%clk 0:00:54]} 25... Bxd6 {[%clk 0:01:01.4]} 26. cxd6 {[%clk
0:00:53.1]} 26... Rxd6 {[%clk 0:01:01.1]} 27. Bxf4 {[%clk 0:00:43.9]} 27... Rxd1
{[%clk 0:00:52.1]} 28. Qxd1 {[%clk 0:00:39.1]} 28... Qxf4 {[%clk 0:00:51.7]} 29.
Bxe6 {[%clk 0:00:22.5]} 29... fxe6 {[%clk 0:00:51.6]} 30. f3 {[%clk 0:00:20.7]}
30... e5 {[%clk 0:00:41]} 31. Qd7+ {[%clk 0:00:17.6]} 31... Rf7 {[%clk
0:00:41.2]} 32. Qe6 {[%clk 0:00:16.7]} 32... Rf6 {[%clk 0:00:31.6]} 33. Qxe5
{[%clk 0:00:16]} 33... Qxe5 {[%clk 0:00:30.3]} 34. Rxe5 {[%clk 0:00:15]} 34...
Kf7 {[%clk 0:00:31.1]} 35. Kf2 {[%clk 0:00:14.2]} 35... Rd6 {[%clk 0:00:31.2]}
36. Ke3 {[%clk 0:00:13.7]} 36... Rd1 {[%clk 0:00:31]} 37. Rc5 {[%clk 0:00:12.6]}
37... Ra1 {[%clk 0:00:26.7]} 38. Rc3 {[%clk 0:00:12.4]} 38... Ra2 {[%clk
0:00:27.2]} 39. g3 {[%clk 0:00:11.6]} 39... Rxh2 {[%clk 0:00:27]} 40. b5 {[%clk
0:00:12.5]} 40... Ra2 {[%clk 0:00:21.5]} 41. bxc6 {[%clk 0:00:11.9]} 41... bxc6
{[%clk 0:00:22.4]} 42. Rxc6 {[%clk 0:00:11.9]} 42... Rxa3+ {[%clk 0:00:22.2]}
43. Kf2 {[%clk 0:00:11.4]} 43... h5 {[%clk 0:00:17.7]} 44. Rh6 {[%clk
0:00:10.4]} 44... g4 {[%clk 0:00:18]} 45. f4 {[%clk 0:00:09.2]} 45... Ra2+
{[%clk 0:00:18.5]} 46. Kg1 {[%clk 0:00:08.5]} 46... Ra5 {[%clk 0:00:18.6]} 47.
Kf2 {[%clk 0:00:07.1]} 47... Kg7 {[%clk 0:00:19]} 48. Rc6 {[%clk 0:00:06]} 48...
Ra2+ {[%clk 0:00:19.2]} 49. Kg1 {[%clk 0:00:05.8]} 49... a5 {[%clk 0:00:18.3]}
50. Ra6 {[%clk 0:00:06]} 50... a4 {[%clk 0:00:18.1]} 51. Kh1 {[%clk 0:00:06.4]}
51... Kf7 {[%clk 0:00:16.3]} 52. Kg1 {[%clk 0:00:06.7]} 52... a3 {[%clk
0:00:16.1]} 53. Kh1 {[%clk 0:00:06.3]} 53... Ra1+ {[%clk 0:00:16.3]} 54. Kg2
{[%clk 0:00:06.5]} 54... a2 {[%clk 0:00:16.6]} 55. Kh2 {[%clk 0:00:06.8]} 55...
Ke7 {[%clk 0:00:15]} 56. Kg2 {[%clk 0:00:07]} 56... Kd7 {[%clk 0:00:14.5]} 57.
Kh2 {[%clk 0:00:07.2]} 57... Kc7 {[%clk 0:00:15]} 58. Ra3 {[%clk 0:00:06.9]}
58... Kb6 {[%clk 0:00:15]} 59. Kg2 {[%clk 0:00:07.2]} 59... Kc5 {[%clk
0:00:15.6]} 60. Ra8 {[%clk 0:00:07.1]} 60... Kd4 {[%clk 0:00:15.3]} 61. Kh2
{[%clk 0:00:07.1]} 61... Ke3 {[%clk 0:00:15.5]} 62. Ra3+ {[%clk 0:00:06.8]}
62... Kf2 {[%clk 0:00:14.8]} 63. Ra4 {[%clk 0:00:07]} 63... Ke2 {[%clk
0:00:12.6]} 64. f5 {[%clk 0:00:06.1]} 64... Ke3 {[%clk 0:00:11.5]} 65. f6 {[%clk
0:00:06.3]} 65... Rf1 {[%clk 0:00:11.4]} 66. Rxa2 {[%clk 0:00:05.4]} 66... Rxf6
{[%clk 0:00:12]} 67. Ra5 {[%clk 0:00:05.4]} 67... Rf2+ {[%clk 0:00:12.1]} 68.
Kh1 {[%clk 0:00:05.7]} 68... Kf3 {[%clk 0:00:12.3]} 69. Rxh5 {[%clk 0:00:05]}
69... Kxg3 {[%clk 0:00:12.8]} 70. Kg1 {[%clk 0:00:02.5]} 70... Ra2 {[%clk
0:00:12.5]} 71. Kf1 {[%clk 0:00:02.9]} 71... Ra1+ {[%clk 0:00:13.1]} 72. Ke2
{[%clk 0:00:03.3]} 72... Kg2 {[%clk 0:00:13.6]} 73. Rg5 {[%clk 0:00:03.5]} 73...
g3 {[%clk 0:00:14]} 74. Rg8 {[%clk 0:00:03.1]} 74... Rg1 {[%clk 0:00:13.7]} 75.
Ra8 {[%clk 0:00:01.6]} 75... Rb1 {[%clk 0:00:11.8]} 0-1